bitfinex-derivatives/quotes_ETHF0:USTF0_20240920
["timestamp","ask_amount","ask_price","bid_price","bid_amount"]
[1726806194178,3.2078,2545.4,2544.7,3.2078]
[1726806194368,3.2078,2545.7,2544.7,3.6007]
[1726806194572,3.2078,2545.7,2544.7,7.4478]
[1726806194874,3.2078,2545.7,2545.3,0.39281]
[1726806195272,3.2078,2545.7,2545.1,3.2078]
[1726806195774,3.2078,2545.7,2544.8,1.0071]
[1726806196474,0.9356,2545.9,2545.1,3.2078]
[1726806196880,0.9356,2545.9,2545.3,0.39281]
[1726806197071,3.2078,2545.7,2545.2,0.39283]
[1726806197269,3.2078,2545.7,2545.1,3.2078]
[1726806197471,0.9356,2545.9,2545.5,0.39278]
[1726806197775,0.9356,2545.9,2545.6,0.39276]
[1726806197977,0.9356,2545.9,2545.5,0.39278]
[1726806198176,0.9356,2545.9,2545.4,0.39279]
[1726806198377,3.2078,2545.7,2545.1,0.39284]
[1726806198583,3.2078,2545.7,2544.8,6.171]
[1726806198776,3.2078,2545.7,2545.2,0.39283]
[1726806199079,0.9356,2545.9,2545.3,0.39281]
[1726806199282,3.2078,2545.8,2545.2,0.39283]
[1726806199580,3.2078,2545.8,2544.8,6.171]
[1726806199986,3.2078,2545.8,2545.2,0.39282]
[1726806200483,3.2078,2545.8,2545.1,0.39284]
[1726806200789,3.2078,2545.8,2545.5,0.39278]
[1726806200993,3.2078,2545.8,2545.4,0.3928]
[1726806201284,3.2078,2545.8,2545.2,0.39283]
[1726806201576,3.2078,2545.5,2544.8,6.171]
[1726806201780,3.2078,2545.5,2544.8,5.1828]
[1726806201981,3.2078,2545.5,2544.9,0.39287]
[1726806202281,3.2078,2545.5,2544.9,0.39288]
[1726806202583,3.2078,2545.8,2544.8,5.745]
[1726806202777,3.2078,2545.7,2545.3,0.39281]
[1726806203785,3.2078,2545.7,2544.8,8.9528]
[1726806204177,3.2078,2545.7,2544.8,5.1828]
[1726806204375,3.2078,2545.7,2544.9,0.39287]
[1726806204678,0.9356,2545.9,2544.5,3.2078]
[1726806204679,3.2078,2545.1,2544.5,3.2078]
[1726806204870,3.2078,2545.1,2544.2,0.9936]
[1726806204871,3.2078,2545.1,2544.3,0.965]
[1726806205073,1.9962,2545.0,2544.0,0.9426]
[1726806205273,3.2078,2544.8,2544.0,0.9426]
[1726806205479,3.2078,2544.5,2543.8,3.2078]
[1726806205682,3.2078,2544.8,2544.2,0.39299]
[1726806205975,3.2078,2544.8,2544.4,0.39295]
[1726806206179,3.2078,2545.3,2544.5,7.6996]
[1726806206373,3.2078,2545.3,2544.7,0.3929]
[1726806206775,3.2078,2545.3,2544.8,0.39289]
[1726806207077,3.2078,2545.3,2544.7,0.39291]
[1726806207289,3.2078,2545.3,2544.6,1.35282]
[1726806207580,1.9324,2545.5,2544.3,0.9745]
[1726806207581,3.2078,2545.0,2544.3,0.9745]
[1726806207783,3.2078,2545.0,2544.3,1.36746]
[1726806208283,3.2078,2544.7,2544.3,1.36747]
[1726806208489,1.0032,2545.2,2544.3,1.36747]
[1726806208490,4.211,2545.2,2544.4,0.39295]
[1726806208675,4.211,2545.2,2544.3,0.9745]
[1726806208878,3.2078,2544.9,2544.3,0.9745]
[1726806209071,3.60077,2544.4,2543.5,3.2078]
[1726806209272,3.2078,2544.1,2543.2,1.0054]
[1726806209577,3.2078,2543.8,2543.3,0.39313]
[1726806209880,0.9843,2544.0,2543.3,0.39313]
[1726806209881,3.2078,2543.7,2543.3,0.39313]
[1726806210086,3.2078,2543.7,2543.2,1.39854]
[1726806210279,3.2078,2543.7,2543.0,6.8988]
[1726806210585,3.2078,2543.7,2543.2,0.39313]
[1726806210786,3.2078,2543.7,2543.0,10.1066]
[1726806210990,3.2078,2543.7,2543.2,0.39313]
[1726806212379,3.2078,2543.7,2543.0,10.1066]
[1726806212680,3.2078,2543.4,2542.7,3.2078]
[1726806212888,3.2078,2543.3,2542.5,1.0175]
[1726806213077,3.2078,2543.3,2542.7,3.2078]
[1726806213277,3.2078,2543.3,2542.9,0.39318]
[1726806213987,3.2078,2543.3,2542.7,3.2078]
[1726806214284,4.174,2543.6,2543.0,0.39316]
[1726806214680,4.174,2543.6,2542.7,3.2078]
[1726806214876,3.2078,2543.3,2542.8,0.3932]
[1726806215087,3.2078,2543.3,2542.7,3.60101]
[1726806215777,3.2078,2543.3,2542.8,0.3932]
[1726806216177,3.2078,2543.3,2542.7,6.9778]
[1726806216381,3.2078,2543.3,2542.7,7.37101]
[1726806216986,3.2078,2543.3,2542.7,3.2078]
[1726806217279,0.9983,2543.2,2542.8,0.39319]
[1726806217480,0.9983,2543.2,2542.7,3.2078]
[1726806217681,0.9983,2543.2,2542.7,3.60101]
[1726806218583,0.9983,2543.2,2542.7,3.2078]
[1726806218776,0.9983,2543.2,2542.8,0.3932]
[1726806218977,0.9983,2543.2,2542.7,3.2078]
[1726806219179,0.9983,2543.2,2542.7,3.60102]
[1726806219378,0.9983,2543.2,2542.7,3.2078]
[1726806219574,0.9983,2543.2,2542.7,3.60101]
[1726806220081,0.9983,2543.2,2542.8,0.3932]
[1726806221085,0.9983,2543.2,2542.7,3.2078]
[1726806221282,0.9983,2543.2,2542.7,3.60101]
[1726806221481,0.9983,2543.2,2542.8,0.3932]
[1726806222479,0.9983,2543.2,2542.9,0.39319]
[1726806222679,0.9983,2543.2,2542.8,0.3932]
[1726806222885,0.9983,2543.2,2542.6,3.77]
[1726806223091,3.2078,2543.7,2543.2,0.39313]
[1726806223485,3.2078,2543.7,2543.3,0.39312]
[1726806223677,3.2078,2543.7,2543.2,0.39313]
[1726806223877,3.2078,2543.7,2543.1,0.9694]
[1726806223878,3.2078,2543.7,2543.3,0.39312]
[1726806225391,3.2078,2543.7,2542.7,6.94805]
[1726806225392,6.9778,2543.4,2542.5,0.39324]
[1726806225583,6.9778,2543.4,2542.2,3.2078]
[1726806225584,3.2078,2542.9,2542.6,0.39323]
[1726806225889,3.2078,2542.9,2542.0,0.9694]
[1726806226290,3.2078,2542.9,2542.2,3.2078]
[1726806226480,3.2078,2542.9,2542.5,0.39324]
[1726806226677,3.2078,2542.9,2542.3,0.39327]
[1726806226983,3.2078,2542.9,2542.2,0.39329]
[1726806227181,3.2078,2542.9,2542.3,0.39327]
[1726806227884,3.2078,2542.9,2542.2,0.39328]
[1726806228084,3.2078,2542.9,2542.1,4.87155402]
[1726806228286,3.2078,2542.9,2542.1,4.47824402]
[1726806229189,6.1167,2543.3,2542.2,3.2078]
[1726806229381,3.2078,2543.0,2542.2,3.2078]
[1726806229987,6.1167,2543.3,2542.4,3.77]
[1726806230194,1.8925,2543.3,2542.5,3.2078]
[1726806230489,3.2078,2543.6,2543.1,3.77]
[1726806230693,3.2078,2543.6,2543.1,4.16315]
[1726806230887,3.2078,2543.6,2542.8,6.9778]
[1726806231287,3.2078,2543.6,2542.9,4.35073717]
[1726806231484,3.2078,2543.6,2543.1,3.2078]
[1726806231689,3.2078,2543.6,2542.9,4.35073717]
[1726806231891,3.2078,2543.6,2542.9,0.39318]
[1726806232090,3.2078,2543.5,2542.9,4.32859683]
[1726806232397,3.2078,2543.5,2542.8,3.2078]
[1726806232584,3.2078,2543.5,2542.8,6.9778]
[1726806232585,1.0022,2543.4,2542.8,6.9778]
[1726806233188,4.148,2543.9,2543.1,6.9778]
[1726806233499,3.2078,2543.8,2543.2,1.35364]
[1726806233690,3.2078,2543.8,2543.2,0.9605]
[1726806233891,3.2078,2543.8,2543.3,0.39312]
[1726806234495,3.2078,2543.8,2543.2,1.35364]
[1726806234698,3.2078,2543.8,2543.3,0.39312]
[1726806235487,3.2078,2543.8,2543.2,0.9605]
[1726806235689,0.9402,2543.9,2543.4,4.44173826]
[1726806235894,0.9402,2543.9,2543.5,0.39309]
[1726806236089,0.9402,2543.9,2543.4,0.3931]
[1726806236294,0.9402,2543.9,2543.3,0.9449]
[1726806236295,4.148,2543.9,2543.3,1.33802]
[1726806236690,4.148,2543.9,2543.4,4.55173386]
[1726806236902,4.148,2543.9,2543.4,4.94484386]
[1726806237090,4.148,2543.9,2543.4,4.55173386]
[1726806237597,3.2078,2544.0,2543.5,0.3931]
[1726806238499,3.2078,2543.7,2543.4,4.55173386]
[1726806238705,3.2078,2543.7,2543.2,1.35364]
[1726806238992,3.2078,2543.7,2543.3,0.39312]
[1726806239587,1.8751,2543.9,2543.4,3.6009]
[1726806239792,1.8751,2543.9,2543.4,0.3931]
[1726806240401,1.8751,2543.9,2543.5,0.39309]
[1726806240593,1.8751,2543.9,2543.6,0.39308]
[1726806240900,1.8751,2543.9,2543.5,0.39309]
[1726806241201,1.8751,2543.9,2543.4,4.2054]
[1726806242000,3.2078,2543.7,2543.2,0.9605]
[1726806242300,3.2078,2543.7,2543.1,3.2078]
[1726806243505,0.39308,2543.6,2542.7,4.1538]
[1726806243701,3.2078,2543.1,2542.4,3.2078]
[1726806243900,1.8963,2543.0,2542.4,3.2078]
[1726806244097,3.2078,2543.1,2542.4,0.39325]
[1726806244300,3.2078,2544.9,2543.0,6.9778]
[1726806244497,3.2078,2544.9,2544.1,3.2078]
[1726806244498,0.9637,2544.7,2544.1,3.2078]
[1726806244700,0.9637,2544.7,2544.2,1.18361217]
[1726806244905,3.2078,2545.2,2544.4,3.2078]
[1726806245109,1.933,2545.5,2544.6,0.39292]
[1726806245393,1.933,2545.5,2544.8,3.2078]
[1726806245594,3.2078,2546.3,2545.1,3.2078]
[1726806245901,3.2078,2545.9,2545.2,10.18096064]
[1726806246204,3.2078,2545.8,2545.2,10.18096064]
[1726806246389,3.2078,2545.8,2545.2,4.21296064]
[1726806246595,4.1626,2546.2,2545.3,9.1758]
[1726806246996,4.1626,2546.2,2545.4,4.46791563]
[1726806248194,3.2078,2545.9,2545.4,5.968]
[1726806248700,3.2078,2545.9,2545.3,3.2078]
[1726806248901,3.2078,2545.6,2545.0,5.967]
[1726806249212,1.0379,2545.5,2545.0,5.967]
[1726806249396,1.0379,2545.5,2545.0,6.35985]
[1726806249597,4.1561,2546.1,2545.4,3.2078]
[1726806249798,4.1561,2546.1,2545.5,0.19457915]
[1726806250002,4.1561,2546.1,2545.4,3.2078]
[1726806250504,4.1561,2546.1,2545.4,3.6006]
[1726806251103,4.1561,2546.1,2545.4,3.2078]
[1726806251601,4.1561,2546.1,2545.2,5.966]
[1726806251602,3.2078,2545.7,2545.2,5.966]
[1726806252107,1.0102,2545.6,2545.2,5.966]
[1726806252808,1.0102,2545.6,2544.8,1.0057]
[1726806252809,3.2078,2545.4,2544.8,3.2078]
[1726806253010,3.2078,2545.1,2544.2,0.9898]
[1726806253312,3.2078,2544.8,2544.2,0.9898]
[1726806253607,3.2078,2544.8,2544.1,10.129]
[1726806253797,3.2078,2544.8,2544.2,0.39298]
[1726806253995,3.2078,2544.8,2544.1,10.60899]
[1726806255406,3.2078,2545.1,2544.5,4.25]
[1726806255604,3.2078,2545.1,2544.6,0.39291]
[1726806255803,3.2078,2545.1,2544.5,4.25]
[1726806255804,3.2078,2545.1,2544.7,0.39291]
[1726806256010,3.2078,2545.1,2544.6,0.39292]
[1726806256608,4.1856,2545.3,2544.7,4.23211448]
[1726806256803,3.2078,2545.2,2544.7,4.23211448]
[1726806257114,3.2078,2545.2,2544.6,7.89839577]
[1726806257406,3.2078,2545.2,2544.7,0.39291]
[1726806257705,3.2078,2545.2,2544.7,4.29767577]
[1726806258311,0.9778,2545.3,2545.0,0.39286]
[1726806258615,0.9778,2545.3,2544.8,4.64288]
[1726806258806,0.9778,2545.3,2544.8,4.25]
[1726806259211,0.9778,2545.3,2544.9,0.39287]
[1726806259514,0.9778,2545.3,2544.8,4.64289]
[1726806260006,0.9778,2545.3,2544.8,4.25]
[1726806260206,0.9778,2545.3,2543.7,0.98265]
[1726806260207,0.39286,2545.1,2544.2,3.2078]
[1726806260406,3.2078,2545.0,2544.2,3.2078]
[1726806260607,3.2078,2544.7,2544.2,3.2078]
[1726806261311,3.2078,2544.7,2544.1,4.25]
[1726806261607,3.2078,2544.7,2544.2,0.39299]
[1726806261916,0.9556,2544.9,2544.2,3.60078]
[1726806262208,0.9556,2544.9,2544.1,4.25]
[1726806262209,4.1634,2544.9,2544.1,4.25]
[1726806262606,0.9556,2544.9,2544.2,3.2078]
[1726806262807,4.1634,2544.9,2544.2,3.60078]
[1726806263013,4.1634,2544.9,2544.2,3.2078]
[1726806263407,3.2078,2544.8,2544.1,4.25]
[1726806263607,3.2078,2544.8,2543.9,3.2078]
[1726806263809,3.2078,2544.5,2543.9,3.2078]
[1726806264008,3.2078,2544.8,2544.1,4.25]
[1726806264222,4.1856,2545.3,2544.5,3.2078]
[1726806264412,4.1856,2545.3,2544.4,4.25]
[1726806264413,4.1856,2545.3,2544.6,5.961]
[1726806264713,3.2078,2545.0,2544.4,4.25]
[1726806264905,3.2078,2545.0,2544.5,5.961]
[1726806264906,1.0013,2544.9,2544.5,5.961]
[1726806265312,1.0013,2544.9,2544.5,10.54400785]
[1726806265519,1.0013,2544.9,2544.6,5.961]
[1726806265715,1.0013,2544.9,2544.6,6.15292129]
[1726806266019,1.0013,2544.9,2544.6,5.961]
[1726806266205,3.2078,2545.1,2544.6,6.54607721]
[1726806266408,3.2078,2545.1,2544.6,6.35392]
[1726806266711,3.2078,2545.1,2544.6,6.15315721]
[1726806266903,3.2078,2545.1,2544.6,6.54607721]
[1726806267109,3.2078,2544.8,2544.2,3.2078]
[1726806267411,3.2078,2544.8,2544.1,10.211]
[1726806267412,3.2078,2544.5,2543.7,10.211]
[1726806267615,3.2078,2544.2,2543.7,10.211]
[1726806267816,0.9425,2544.4,2543.7,10.211]
[1726806268006,0.9425,2544.4,2543.8,4.17053929]
[1726806268518,3.2078,2544.2,2543.8,4.17053929]
[1726806269010,0.98208,2545.3,2543.8,4.17053929]
[1726806269011,3.2078,2544.5,2544.1,4.25]
[1726806269410,3.2078,2544.5,2544.0,0.9617]
[1726806270013,2.3729,2544.8,2543.9,5.962]
[1726806270014,3.2078,2544.2,2543.9,5.962]
[1726806270920,3.2078,2544.2,2543.0,10.212]
[1726806271212,0.9459,2544.4,2543.0,15.42349281]
[1726806271213,3.2078,2543.4,2543.0,15.42349281]
[1726806271611,3.2078,2543.4,2543.0,11.1737]
[1726806272018,0.9459,2543.7,2543.0,11.1737]
[1726806272618,3.2078,2543.8,2543.0,11.1737]
[1726806272619,3.2078,2543.8,2543.4,4.25]
[1726806276013,3.2078,2543.8,2543.4,3.78]
[1726806277316,0.9866,2544.0,2543.4,3.78]
[1726806277716,0.9866,2544.0,2543.5,3.2078]
[1726806278616,0.39309,2543.6,2542.7,6.9878]
[1726806278820,3.2078,2543.1,2542.7,3.78]
[1726806279021,0.39318,2543.0,2542.5,5.963]
[1726806279211,1.0353,2543.0,2542.5,5.963]
[1726806279407,0.9709,2542.9,2542.5,5.963]
[1726806279811,1.0353,2543.0,2542.5,5.963]
[1726806281719,0.39327,2542.4,2541.3,0.39342]
[1726806281922,3.2078,2542.1,2541.0,1.0003]
[1726806282218,3.2078,2542.1,2541.2,3.2078]
[1726806282413,3.2078,2542.1,2541.2,3.60124]
[1726806282628,3.2078,2542.1,2541.2,3.2078]
[1726806282817,3.2078,2541.8,2541.1,0.39346]
[1726806283013,3.2078,2541.8,2541.2,3.2078]
[1726806283318,3.2078,2541.8,2541.1,4.25046755]
[1726806283523,3.2078,2541.8,2541.0,4.7803]
[1726806283822,3.60111,2542.1,2541.1,7.45826755]
[1726806284220,3.60111,2542.1,2541.3,3.78]
[1726806284221,3.2078,2542.1,2541.3,3.78]
[1726806284424,3.2078,2543.3,2541.9,6.9878]
[1726806284722,0.3932,2542.8,2542.1,3.2078]
[1726806284929,0.39321,2542.8,2542.1,3.2078]
[1726806285112,7.971,2543.2,2542.1,3.2078]
[1726806285113,1.0067,2543.1,2542.1,3.2078]
[1726806285317,0.39317,2543.0,2542.1,3.2078]
[1726806285717,0.39319,2542.9,2542.1,3.2078]
[1726806285918,3.2078,2543.0,2542.1,3.2078]
[1726806286126,0.39321,2542.8,2542.1,3.2078]
[1726806286314,0.39319,2542.9,2542.1,3.2078]
[1726806287120,3.60098,2543.0,2542.1,3.2078]
[1726806287321,0.39319,2542.9,2542.1,3.2078]
[1726806287825,3.2078,2542.7,2541.8,3.60115]
[1726806288035,0.9737,2542.6,2541.8,3.60115]
[1726806288619,0.9737,2542.6,2541.8,3.2078]
[1726806289127,0.9737,2542.6,2541.8,3.60115]
[1726806289328,0.9737,2542.6,2541.8,3.2078]
[1726806289827,0.9737,2542.6,2541.8,3.60115]
[1726806290025,0.9737,2542.6,2541.9,4.16154337]
[1726806290327,0.9737,2542.6,2541.5,3.60119]
[1726806290328,0.39325,2542.5,2541.5,3.60119]
[1726806290536,0.39325,2542.5,2541.6,0.39339]
[1726806290537,3.2078,2542.4,2541.6,0.39339]
[1726806290729,3.2078,2542.4,2541.5,7.30078286]
[1726806290931,0.39328,2542.3,2541.5,7.30078286]
[1726806291131,3.60107,2542.4,2541.5,3.2078]
[1726806291342,3.2078,2542.4,2541.5,3.6012]
[1726806292329,0.98348,2541.6,2540.7,3.2078]
[1726806292532,3.2078,2541.2,2540.7,3.2078]
[1726806292732,4.25,2541.3,2540.7,3.2078]
[1726806293030,7.4578,2541.3,2540.7,3.2078]
[1726806293433,3.35601,2541.5,2540.7,3.2078]
[1726806293735,3.35602,2541.5,2540.7,3.2078]
[1726806294329,3.35602,2541.5,2540.7,3.60133]
[1726806294330,2.9626,2541.5,2540.7,3.60133]
[1726806294531,2.9626,2541.5,2541.0,3.2078]
[1726806294729,1.9667,2541.5,2541.0,3.2078]
[1726806294924,1.9667,2541.5,2540.8,3.2078]
[1726806295232,1.9667,2541.5,2540.8,3.6013]
[1726806295427,1.9667,2541.5,2540.8,3.2078]
[1726806296738,1.9667,2541.5,2541.2,3.2078]
[1726806297332,1.9667,2541.5,2540.7,3.2078]
[1726806297534,2.36011,2541.5,2540.7,3.2078]
[1726806297731,5.56791,2541.5,2540.7,3.2078]
[1726806297936,5.1745,2541.5,2540.7,3.2078]
[1726806298531,5.1745,2541.5,2540.7,3.60133]
[1726806298831,5.1745,2541.5,2540.7,3.2078]
[1726806299035,5.1745,2541.5,2541.0,3.2078]
[1726806299941,1.9667,2541.5,2541.0,3.2078]
[1726806300841,0.9449,2541.5,2541.3,3.2078]
[1726806301134,1.0235,2542.0,2541.4,3.2078]
[1726806301340,1.028,2541.9,2541.4,3.2078]
[1726806301837,4.2358,2541.9,2541.1,9.1738]
[1726806302340,0.39338,2541.7,2541.1,9.1738]
[1726806302541,4.2358,2541.9,2541.1,9.1738]
[1726806302831,1.42135,2541.9,2541.1,9.1738]
[1726806303137,1.028,2541.9,2541.1,9.1738]
[1726806303333,1.02135,2541.9,2541.4,3.2078]
[1726806303641,0.628,2541.9,2541.4,3.2078]
[1726806303830,0.39337,2541.7,2541.4,3.2078]
[1726806304031,0.628,2541.9,2541.4,3.2078]
[1726806305641,1.02135,2541.9,2541.4,3.2078]
[1726806306144,0.39336,2541.8,2541.4,3.2078]
[1726806306441,1.02135,2541.9,2541.4,3.2078]
[1726806307043,1.02136,2541.9,2541.4,3.2078]
[1726806307239,1.02135,2541.9,2541.4,3.2078]
[1726806307435,0.39336,2541.8,2541.4,3.2078]
[1726806307631,0.628,2541.9,2541.4,3.2078]
[1726806307828,0.39337,2541.7,2541.4,3.2078]
[1726806308034,0.39337,2541.8,2541.4,3.2078]
[1726806308232,0.628,2541.9,2541.4,3.2078]
[1726806308441,0.39338,2541.7,2541.4,3.2078]
[1726806308642,4.8809,2541.8,2541.0,0.39348]
[1726806308937,4.8809,2541.8,2540.9,3.2078]
[1726806308938,4.1594,2541.6,2540.9,3.2078]
[1726806309132,4.1594,2541.6,2540.6,4.1683]
[1726806309133,3.78,2541.4,2540.6,4.1683]
[1726806309333,3.2078,2541.3,2540.7,3.2078]
[1726806309534,0.9042,2541.2,2540.7,3.2078]
[1726806309731,0.9042,2541.2,2540.4,3.2078]
[1726806310245,1.29766,2541.2,2540.6,0.39353]
[1726806310429,1.29766,2541.2,2540.4,3.2078]
[1726806310635,0.9042,2541.2,2540.7,3.60132]
[1726806311036,0.9042,2541.2,2540.8,3.2078]
[1726806311334,0.9042,2541.2,2540.3,7.89461279]
[1726806311335,0.9042,2541.2,2541.1,3.2078]
[1726806311538,0.9516,2541.6,2541.1,3.2078]
[1726806311743,0.9516,2541.6,2541.1,3.60126]
[1726806312044,0.9516,2541.6,2541.2,0.39345]
[1726806312344,0.9516,2541.6,2541.1,3.60126]
[1726806312746,0.9516,2541.6,2541.1,3.2078]
[1726806312936,3.2078,2542.1,2541.4,3.2078]
[1726806313135,0.39335,2541.9,2541.4,3.2078]
[1726806313542,0.39336,2541.8,2541.4,3.2078]
[1726806313730,0.39335,2541.9,2541.4,3.2078]
[1726806313933,0.39336,2541.8,2541.4,3.2078]
[1726806314132,3.78,2541.9,2541.4,3.2078]
[1726806314337,3.78,2541.9,2540.6,4.5505]
[1726806314338,3.60118,2541.7,2541.0,0.39347]
[1726806314642,3.60118,2541.7,2541.0,3.60128]
[1726806314643,0.39338,2541.7,2541.0,3.60128]
[1726806315143,3.78,2541.9,2541.0,3.2078]
[1726806315344,3.78,2541.9,2541.0,3.60128]
[1726806315540,0.39339,2541.7,2541.0,3.60128]
[1726806315747,0.39339,2541.7,2541.0,3.2078]
[1726806316040,0.39339,2541.7,2541.0,3.60127]
[1726806316238,0.39339,2541.7,2541.1,0.39346]
[1726806316436,4.17335,2541.9,2541.3,3.2078]
[1726806316640,3.78,2541.9,2541.3,3.2078]
[1726806316842,0.39339,2541.6,2541.0,3.60127]
[1726806317140,0.39338,2541.7,2541.1,0.39346]
[1726806317329,0.39339,2541.6,2541.1,0.39346]
[1726806317534,3.2078,2541.7,2540.7,4.1863]
[1726806317836,0.39338,2541.7,2541.2,0.39345]
[1726806318038,1.28446,2541.8,2541.0,3.2078]
[1726806318233,3.78,2541.9,2541.3,0.39343]
[1726806318433,0.9055,2542.0,2541.0,3.2078]
[1726806318639,0.9055,2542.0,2541.2,0.39344]
[1726806318838,0.39336,2541.8,2541.3,0.39343]
[1726806319044,0.9055,2542.0,2541.3,0.39343]
[1726806319045,0.39335,2541.9,2541.3,0.39343]
[1726806319247,0.9055,2542.0,2541.3,3.2078]
[1726806319545,1.29883,2542.0,2541.4,0.39341]
[1726806319946,1.29884,2542.0,2541.4,0.39341]
[1726806320138,0.9055,2542.0,2541.4,0.39341]
[1726806320441,1.29884,2542.0,2541.3,3.2078]
[1726806320637,0.9055,2542.0,2541.5,0.3934]
[1726806320843,0.39334,2541.9,2541.4,0.39341]
[1726806321042,1.29884,2542.0,2541.4,0.39341]
[1726806321243,0.9055,2542.0,2541.4,0.39341]
[1726806321440,0.9055,2542.0,2541.3,3.2078]
[1726806321642,0.9364,2541.9,2541.3,3.2078]
[1726806322645,0.9364,2541.9,2541.4,0.39341]
[1726806323045,0.9364,2541.9,2541.3,3.2078]
[1726806323348,6.9878,2542.5,2541.7,3.2078]
[1726806323546,7.9242,2542.5,2541.7,3.2078]
[1726806323742,0.9364,2542.5,2541.7,3.2078]
[1726806324054,0.9364,2542.5,2542.3,0.39328]
[1726806324263,0.9364,2542.5,2542.2,0.3933]
[1726806324558,0.9364,2542.5,2542.0,3.2078]
[1726806325147,0.9647,2542.4,2542.0,3.2078]
[1726806325950,0.39329,2542.3,2542.0,3.2078]
[1726806326449,0.9364,2542.5,2542.0,3.2078]
[1726806326654,1.934,2543.3,2542.4,3.2078]
[1726806326852,0.9477,2543.2,2542.4,3.2078]
[1726806327158,0.9477,2543.2,2542.7,3.2078]
[1726806327453,0.9477,2543.2,2542.8,0.3932]
[1726806328247,0.9477,2543.2,2542.9,0.39318]
[1726806328456,0.9477,2543.2,2542.8,0.39319]
[1726806329259,0.9477,2543.2,2542.7,3.2078]
[1726806329557,0.9477,2543.2,2542.5,0.14873049]
[1726806329558,6.9878,2543.8,2543.0,3.2078]
[1726806329745,1.9027,2543.9,2543.3,3.60092]
[1726806329953,1.9027,2543.9,2543.3,0.39312]
[1726806329954,2.71412714,2543.7,2543.3,0.39312]
[1726806330153,4.61682714,2543.9,2543.2,3.2078]
[1726806330353,2.71412714,2543.8,2543.2,3.60093]
[1726806330553,2.72549164,2543.6,2543.2,3.60093]
[1726806330755,1.9027,2543.9,2543.2,3.60094]
[1726806330954,2.72549164,2543.8,2543.2,3.60094]
[1726806331351,1.9027,2543.9,2543.2,3.60094]
[1726806331559,2.72714852,2543.8,2543.2,3.60094]
[1726806331854,0.39308,2543.7,2543.2,3.2078]
[1726806332055,4.17308,2543.6,2543.2,3.2078]
[1726806332269,10.43914852,2543.6,2543.2,3.2078]
[1726806332448,0.39312,2543.4,2542.7,3.2078]
[1726806332653,3.932,2543.5,2542.4,3.2078]
[1726806332654,3.78,2543.0,2542.4,3.2078]
[1726806332857,0.9509,2542.9,2542.4,3.2078]
[1726806333057,1.3441,2542.9,2542.4,3.2078]
[1726806333264,1.3441,2542.9,2542.2,0.3933]
[1726806333565,1.3441,2542.9,2542.2,3.6011]
[1726806334061,1.3441,2542.9,2542.2,3.2078]
[1726806334062,0.39321,2542.8,2542.2,3.2078]
[1726806334259,3.2078,2542.6,2542.2,0.39329]
[1726806334457,0.9509,2542.9,2541.8,3.2078]
[1726806334661,0.9509,2542.9,2542.4,0.39326]
[1726806334859,0.9509,2542.9,2542.1,3.2078]
[1726806334860,0.9509,2542.9,2542.5,0.39325]
[1726806335058,0.9509,2542.9,2542.4,0.39326]
[1726806335364,0.9509,2542.9,2542.1,3.2078]
[1726806335560,0.9509,2542.9,2542.3,0.39327]
[1726806336453,3.78,2542.7,2542.1,0.39331]
[1726806336659,0.39321,2542.8,2542.0,0.39332]
[1726806336865,0.9509,2542.9,2541.9,0.39333]
[1726806337062,1.36593,2542.7,2542.0,0.39332]
[1726806337263,0.39324,2542.6,2542.1,3.2078]
[1726806337463,0.39326,2542.5,2541.8,3.60115]
[1726806337662,0.8818,2542.6,2541.8,3.2078]
[1726806337863,0.39327,2542.4,2541.8,3.2078]
[1726806338162,0.39331,2542.2,2541.5,0.3934]
[1726806338362,0.8773,2542.1,2541.1,13.0448]
[1726806338568,1.85,2542.1,2541.4,3.2078]
[1726806338958,1.85,2542.1,2541.5,0.3934]
[1726806339564,1.85,2542.1,2541.6,0.39339]
[1726806339765,1.85,2542.1,2541.5,0.3934]
[1726806340065,1.85,2542.1,2541.7,3.2078]
[1726806340272,1.85,2542.1,2541.7,3.60116]
[1726806340459,1.85,2542.1,2541.7,3.2078]
[1726806340668,1.85,2542.1,2541.7,3.60116]
[1726806340868,1.85,2542.1,2541.7,3.60117]
[1726806341064,0.8773,2542.1,2542.0,3.2078]
[1726806341465,14.5909,2542.1,2541.6,3.2078]
[1726806341769,0.39334,2541.9,2541.6,3.2078]
[1726806341972,0.39337,2541.7,2541.1,3.2078]
[1726806342374,0.39339,2541.6,2541.1,3.2078]
[1726806342870,4.6581,2541.8,2541.1,3.60127]
[1726806342871,0.39338,2541.7,2541.1,3.60127]
[1726806343062,5.05147,2541.8,2541.2,0.39345]
[1726806343264,0.39338,2541.7,2541.1,3.60126]
[1726806343466,4.6581,2541.8,2541.1,3.2078]
[1726806343766,3.2078,2541.7,2541.3,0.39343]
[1726806343963,6.9878,2541.4,2540.0,3.82294754]
[1726806344169,3.78,2540.5,2540.2,3.2078]
[1726806344464,3.78,2540.5,2539.7,3.6441088]
[1726806344669,3.78,2540.5,2539.7,3.4484]
[1726806344868,3.2078,2540.7,2539.7,3.4484]
[1726806345068,0.9415,2540.4,2539.7,3.4484]
[1726806345365,0.9415,2540.4,2539.7,0.39367]
[1726806345678,0.9415,2540.4,2539.6,0.39369]
[1726806345874,1.33508,2540.4,2539.6,0.39368]